[Event "*** Titled Tuesday Blitz"]
[Site "Chess.com"]
[Date "2020.05.05"]
[Round "9"]
[White "MisiekZielony"]
[Black "Shuvalov"]
[Result "0-1"]
[WhiteElo "2172"]
[BlackElo "2451"]
[TimeControl "180+1"]
[EndTime "11:48:03 PDT"]
[Termination "Shuvalov won by resignation"]

1. c4 {[%clk 0:02:59.7]} 1... c6 {[%clk 0:02:58.9]} 2. Nc3 {[%clk 0:02:59.7]}
2... d5 {[%clk 0:02:58.8]} 3. cxd5 {[%clk 0:02:59.5]} 3... cxd5 {[%clk
0:02:59.7]} 4. d4 {[%clk 0:02:59.8]} 4... Nc6 {[%clk 0:03:00.1]} 5. Nf3 {[%clk
0:03:00.1]} 5... Nf6 {[%clk 0:02:59.9]} 6. Bf4 {[%clk 0:02:59.9]} 6... Bf5
{[%clk 0:02:59.7]} 7. e3 {[%clk 0:02:59.9]} 7... e6 {[%clk 0:02:59.6]} 8. Bb5
{[%clk 0:02:58.1]} 8... Nd7 {[%clk 0:02:58.8]} 9. Qa4 {[%clk 0:02:56.4]} 9...
Rc8 {[%clk 0:02:57.7]} 10. O-O {[%clk 0:02:55.2]} 10... a6 {[%clk 0:02:56]} 11.
Bxc6 {[%clk 0:02:22.4]} 11... Rxc6 {[%clk 0:02:56.9]} 12. Rfc1 {[%clk
0:02:15.2]} 12... Be7 {[%clk 0:02:54.3]} 13. Qd1 {[%clk 0:02:05]} 13... O-O
{[%clk 0:02:51.7]} 14. Na4 {[%clk 0:02:04.7]} 14... Qa5 {[%clk 0:02:24.2]} 15.
Rxc6 {[%clk 0:02:02]} 15... bxc6 {[%clk 0:02:25.1]} 16. Ne5 {[%clk 0:01:29.3]}
16... Nxe5 {[%clk 0:02:22]} 17. Bxe5 {[%clk 0:01:28.5]} 17... c5 {[%clk
0:02:10.8]} 18. dxc5 {[%clk 0:01:23.9]} 18... Bxc5 {[%clk 0:02:10.6]} 19. Rc1
{[%clk 0:01:00.5]} 19... Be7 {[%clk 0:01:58.2]} 20. Rc7 {[%clk 0:00:51.1]} 20...
Bf6 {[%clk 0:01:54.5]} 21. Bxf6 {[%clk 0:00:50.3]} 21... Qxc7 {[%clk 0:01:53]}
22. Bd4 {[%clk 0:00:42.8]} 22... Qc2 {[%clk 0:01:38.5]} 23. Qxc2 {[%clk
0:00:41.3]} 23... Bxc2 {[%clk 0:01:39.4]} 24. Nc5 {[%clk 0:00:40.3]} 24... a5
{[%clk 0:01:32.7]} 25. Kf1 {[%clk 0:00:38.2]} 25... Rc8 {[%clk 0:01:31.6]} 26.
f4 {[%clk 0:00:37.4]} 26... Bb1 {[%clk 0:01:11.8]} 27. a3 {[%clk 0:00:36.4]}
27... Ba2 {[%clk 0:01:10.3]} 28. Ke1 {[%clk 0:00:34.3]} 28... Bc4 {[%clk
0:01:08.7]} 29. b3 {[%clk 0:00:33.6]} 29... Bb5 {[%clk 0:01:07.6]} 30. a4 {[%clk
0:00:33.1]} 30... Be8 {[%clk 0:01:05.4]} 31. Kd2 {[%clk 0:00:31.5]} 31... Bc6
{[%clk 0:01:03.9]} 32. Bc3 {[%clk 0:00:29.6]} 32... Ra8 {[%clk 0:01:03.1]} 33.
Nd3 {[%clk 0:00:26]} 33... f6 {[%clk 0:01:01.7]} 34. Nc5 {[%clk 0:00:24.6]}
34... Kf7 {[%clk 0:01:01.3]} 35. Kc2 {[%clk 0:00:23.9]} 35... Ke7 {[%clk
0:01:00.4]} 36. Kb2 {[%clk 0:00:23.9]} 36... Kd6 {[%clk 0:01:00.1]} 37. b4
{[%clk 0:00:24]} 37... axb4 {[%clk 0:00:57.2]} 38. Bxb4 {[%clk 0:00:24]} 38...
e5 {[%clk 0:00:49.5]} 39. a5 {[%clk 0:00:17.4]} 39... d4 {[%clk 0:00:46.9]} 40.
Na4+ {[%clk 0:00:13.9]} 40... Ke6 {[%clk 0:00:43]} 41. Nb6 {[%clk 0:00:12.7]}
41... Rd8 {[%clk 0:00:37.6]} 42. fxe5 {[%clk 0:00:12]} 42... dxe3 {[%clk
0:00:35.6]} 43. exf6 {[%clk 0:00:11.1]} 43... gxf6 {[%clk 0:00:35.5]} 0-1

[Event "*** Titled Tuesday Blitz"]
[Site "Chess.com"]
[Date "2020.05.05"]
[Round "9"]
[White "j2806"]
[Black "ChessWarrior3"]
[Result "0-1"]
[WhiteElo "1973"]
[BlackElo "2045"]
[TimeControl "180+1"]
[EndTime "11:48:04 PDT"]
[Termination "ChessWarrior3 won by resignation"]

1. e4 {[%clk 0:02:56]} 1... c5 {[%clk 0:02:59.4]} 2. Nf3 {[%clk 0:02:55.5]} 2...
d6 {[%clk 0:02:58.3]} 3. d4 {[%clk 0:02:55.3]} 3... cxd4 {[%clk 0:02:59.2]} 4.
Nxd4 {[%clk 0:02:54.8]} 4... Nf6 {[%clk 0:02:59.2]} 5. Nc3 {[%clk 0:02:54.1]}
5... a6 {[%clk 0:02:59.8]} 6. Be3 {[%clk 0:02:53.7]} 6... e5 {[%clk 0:02:59.7]}
7. Nb3 {[%clk 0:02:52.8]} 7... Be6 {[%clk 0:03:00]} 8. f3 {[%clk 0:02:52.6]}
8... Nbd7 {[%clk 0:02:59.8]} 9. Qd2 {[%clk 0:02:52.4]} 9... b5 {[%clk
0:02:57.2]} 10. O-O-O {[%clk 0:02:51.9]} 10... Nb6 {[%clk 0:02:55.6]} 11. g4
{[%clk 0:02:50.8]} 11... Nc4 {[%clk 0:02:55.1]} 12. Bxc4 {[%clk 0:02:44.8]}
12... bxc4 {[%clk 0:02:54.3]} 13. Na1 {[%clk 0:02:45.2]} 13... Be7 {[%clk
0:02:47.3]} 14. g5 {[%clk 0:02:35.8]} 14... Nd7 {[%clk 0:02:46.7]} 15. h4 {[%clk
0:02:33.2]} 15... Qc7 {[%clk 0:02:32.9]} 16. Nd5 {[%clk 0:02:23.8]} 16... Bxd5
{[%clk 0:02:30.9]} 17. Qxd5 {[%clk 0:02:23.3]} 17... Rb8 {[%clk 0:02:20.4]} 18.
c3 {[%clk 0:02:22.1]} 18... O-O {[%clk 0:02:16]} 19. Nc2 {[%clk 0:02:08.9]}
19... Nb6 {[%clk 0:02:07.3]} 20. Qd2 {[%clk 0:02:02.3]} 20... Na4 {[%clk
0:02:05.4]} 21. Nb4 {[%clk 0:01:55.3]} 21... Qd7 {[%clk 0:01:56.4]} 22. b3
{[%clk 0:01:48.9]} 22... cxb3 {[%clk 0:01:53.7]} 23. axb3 {[%clk 0:01:48.1]}
23... Rfc8 {[%clk 0:01:50.3]} 24. bxa4 {[%clk 0:01:22.4]} 24... Rxb4 {[%clk
0:01:48.9]} 25. Qc2 {[%clk 0:01:15.5]} 25... Rxa4 {[%clk 0:01:27.9]} 26. Kd2
{[%clk 0:00:55.9]} 26... Ra3 {[%clk 0:01:15.6]} 27. Rc1 {[%clk 0:00:47.2]} 27...
Qe6 {[%clk 0:01:06.5]} 28. Ke1 {[%clk 0:00:38.9]} 28... Qc4 {[%clk 0:00:51.6]}
29. Bd2 {[%clk 0:00:35.8]} 29... Ra2 {[%clk 0:00:49.9]} 30. Qd1 {[%clk
0:00:34.9]} 30... d5 {[%clk 0:00:40.4]} 31. exd5 {[%clk 0:00:33]} 31... e4
{[%clk 0:00:36.1]} 32. Rc2 {[%clk 0:00:27.8]} 32... Rxc2 {[%clk 0:00:28.1]} 33.
Qxc2 {[%clk 0:00:27.7]} 33... exf3 {[%clk 0:00:27.8]} 34. Kd1 {[%clk 0:00:23.4]}
34... Ba3 {[%clk 0:00:22.7]} 35. Qf5 {[%clk 0:00:20.9]} 35... Qe2+ {[%clk
0:00:18.1]} 36. Kc2 {[%clk 0:00:19.9]} 36... Rb8 {[%clk 0:00:18.6]} 37. Rb1
{[%clk 0:00:15.5]} 37... Rxb1 {[%clk 0:00:17]} 38. Kxb1 {[%clk 0:00:15.6]} 38...
Qxd2 {[%clk 0:00:15.9]} 39. Qc8+ {[%clk 0:00:15.5]} 39... Bf8 {[%clk 0:00:16.3]}
40. d6 {[%clk 0:00:14.3]} 40... Qxd6 {[%clk 0:00:14.6]} 41. Qf5 {[%clk
0:00:14.3]} 41... Qd1+ {[%clk 0:00:15]} 42. Kb2 {[%clk 0:00:13.7]} 42... Qe2+
{[%clk 0:00:15.9]} 43. Kb3 {[%clk 0:00:12.5]} 43... f2 {[%clk 0:00:16.8]} 44.
Ka4 {[%clk 0:00:11]} 44... f1=Q {[%clk 0:00:16.7]} 0-1

[Event "*** Titled Tuesday Blitz"]
[Site "Chess.com"]
[Date "2020.05.05"]
[Round "9"]
[White "Tsyhanchuk_Stanislav"]
[Black "MFBerna"]
[Result "1-0"]
[WhiteElo "2591"]
[BlackElo "2354"]
[TimeControl "180+1"]
[EndTime "11:48:05 PDT"]
[Termination "Tsyhanchuk_Stanislav won on time"]

1. e4 {[%clk 0:03:00.9]} 1... e5 {[%clk 0:02:55.9]} 2. Nf3 {[%clk 0:02:58.4]}
2... Nc6 {[%clk 0:02:56]} 3. Bb5 {[%clk 0:02:58.6]} 3... Bc5 {[%clk 0:02:54.9]}
4. O-O {[%clk 0:02:56.6]} 4... Nf6 {[%clk 0:02:51.7]} 5. d3 {[%clk 0:02:53.9]}
5... d6 {[%clk 0:02:50]} 6. c3 {[%clk 0:02:51.8]} 6... O-O {[%clk 0:02:49.5]} 7.
h3 {[%clk 0:02:50]} 7... Ne7 {[%clk 0:02:43.9]} 8. Bg5 {[%clk 0:02:47.1]} 8...
Ng6 {[%clk 0:02:43.1]} 9. d4 {[%clk 0:02:43.7]} 9... Bb6 {[%clk 0:02:39.8]} 10.
Nbd2 {[%clk 0:02:25.6]} 10... h6 {[%clk 0:02:39.5]} 11. Be3 {[%clk 0:02:25.1]}
11... Qe7 {[%clk 0:02:36.8]} 12. Re1 {[%clk 0:02:22]} 12... c6 {[%clk
0:02:36.4]} 13. Ba4 {[%clk 0:02:19.7]} 13... Re8 {[%clk 0:02:22.6]} 14. Bc2
{[%clk 0:02:12.5]} 14... Be6 {[%clk 0:02:02.8]} 15. a4 {[%clk 0:02:09.1]} 15...
Bc7 {[%clk 0:01:53.6]} 16. Nf1 {[%clk 0:02:07.2]} 16... Rad8 {[%clk 0:01:45.8]}
17. Ng3 {[%clk 0:02:05.1]} 17... Qd7 {[%clk 0:01:18.3]} 18. Nf5 {[%clk
0:01:44.4]} 18... Bxf5 {[%clk 0:01:12.7]} 19. exf5 {[%clk 0:01:45.3]} 19... Nf8
{[%clk 0:01:12.7]} 20. dxe5 {[%clk 0:01:37.3]} 20... dxe5 {[%clk 0:01:13.6]} 21.
Bxa7 {[%clk 0:01:32.1]} 21... e4 {[%clk 0:00:47.5]} 22. Nd4 {[%clk 0:01:26.5]}
22... Qd6 {[%clk 0:00:41.6]} 23. g3 {[%clk 0:01:26.2]} 23... e3 {[%clk
0:00:41.8]} 24. Qf3 {[%clk 0:01:19.3]} 24... exf2+ {[%clk 0:00:33.5]} 25. Kxf2
{[%clk 0:01:20.2]} 25... N8h7 {[%clk 0:00:33.1]} 26. Rad1 {[%clk 0:00:58.4]}
26... Ng5 {[%clk 0:00:30.9]} 27. Qg2 {[%clk 0:00:57.6]} 27... Rxe1 {[%clk
0:00:16]} 28. Rxe1 {[%clk 0:00:56.1]} 28... c5 {[%clk 0:00:08.2]} 29. Nf3 {[%clk
0:00:31.5]} 29... Nxf3 {[%clk 0:00:04.1]} 30. Qxf3 {[%clk 0:00:32.4]} 30... Qd2+
{[%clk 0:00:04.2]} 31. Re2 {[%clk 0:00:31.3]} 31... Qd6 {[%clk 0:00:04.2]} 32.
Bb3 {[%clk 0:00:19.4]} 32... Ra8 {[%clk 0:00:04.3]} 33. Qxb7 {[%clk 0:00:13.5]}
33... Qxg3+ {[%clk 0:00:04.3]} 34. Kf1 {[%clk 0:00:14.1]} 34... Qxh3+ {[%clk
0:00:04.5]} 35. Ke1 {[%clk 0:00:14.3]} 35... Qg3+ {[%clk 0:00:04.1]} 36. Kd1
{[%clk 0:00:14.5]} 36... Rd8+ {[%clk 0:00:04.8]} 37. Kc2 {[%clk 0:00:15.1]}
37... Qf3 {[%clk 0:00:03.9]} 38. Qxf3 {[%clk 0:00:14.7]} 1-0

[Event "*** Titled Tuesday Blitz"]
[Site "Chess.com"]
[Date "2020.05.05"]
[Round "9"]
[White "LiamPutnam2008"]
[Black "dopolian"]
[Result "1-0"]
[WhiteElo "2535"]
[BlackElo "2392"]
[TimeControl "180+1"]
[EndTime "11:48:05 PDT"]
[Termination "LiamPutnam2008 won on time"]

1. d4 {[%clk 0:03:00.2]} 1... Nf6 {[%clk 0:03:00.1]} 2. c4 {[%clk 0:02:59.6]}
2... e6 {[%clk 0:02:58.8]} 3. Nc3 {[%clk 0:02:58.8]} 3... d5 {[%clk 0:02:59.3]}
4. cxd5 {[%clk 0:02:58.2]} 4... exd5 {[%clk 0:03:00.2]} 5. Bg5 {[%clk
0:02:58.3]} 5... Be7 {[%clk 0:03:00.4]} 6. e3 {[%clk 0:02:58.9]} 6... h6 {[%clk
0:02:59.9]} 7. Bh4 {[%clk 0:02:56.7]} 7... O-O {[%clk 0:02:58.2]} 8. Bd3 {[%clk
0:02:56.6]} 8... b6 {[%clk 0:02:55.3]} 9. Nf3 {[%clk 0:02:37.5]} 9... Bb7 {[%clk
0:02:53.7]} 10. Qc2 {[%clk 0:02:27.5]} 10... c5 {[%clk 0:02:51.4]} 11. O-O
{[%clk 0:02:24.1]} 11... Nbd7 {[%clk 0:02:46.3]} 12. Rad1 {[%clk 0:02:20.2]}
12... Rb8 {[%clk 0:02:39.2]} 13. Bg3 {[%clk 0:02:04.9]} 13... Rc8 {[%clk
0:02:38.7]} 14. Ne5 {[%clk 0:02:04.8]} 14... Re8 {[%clk 0:02:27]} 15. f4 {[%clk
0:01:55.9]} 15... cxd4 {[%clk 0:01:45.9]} 16. exd4 {[%clk 0:01:56.8]} 16... Ne4
{[%clk 0:01:44.8]} 17. Bxe4 {[%clk 0:01:40.2]} 17... dxe4 {[%clk 0:01:45.7]} 18.
Qb3 {[%clk 0:01:40.3]} 18... Rf8 {[%clk 0:01:31.1]} 19. Ng6 {[%clk 0:01:34]}
19... Re8 {[%clk 0:01:30.7]} 20. Ne5 {[%clk 0:01:26.2]} 20... Rf8 {[%clk
0:01:30.7]} 21. Rfe1 {[%clk 0:01:15.7]} 21... Nf6 {[%clk 0:01:23.5]} 22. d5
{[%clk 0:01:14.9]} 22... Bc5+ {[%clk 0:01:09.1]} 23. Kh1 {[%clk 0:01:12.2]}
23... e3 {[%clk 0:01:08.5]} 24. Bh4 {[%clk 0:00:49.1]} 24... Ba6 {[%clk
0:00:26.2]} 25. Ne4 {[%clk 0:00:48.1]} 25... e2 {[%clk 0:00:18.2]} 26. Nxf6+
{[%clk 0:00:43.6]} 26... gxf6 {[%clk 0:00:16]} 27. Rc1 {[%clk 0:00:37.2]} 27...
Qd6 {[%clk 0:00:14.4]} 28. Ng4 {[%clk 0:00:33.5]} 28... Bd4 {[%clk 0:00:06.1]}
29. Nxh6+ {[%clk 0:00:29.3]} 29... Kh7 {[%clk 0:00:05.4]} 30. Nf5 {[%clk
0:00:27.7]} 30... Qxf4 {[%clk 0:00:05.7]} 31. Qh3 {[%clk 0:00:16.1]} 31... Rxc1
{[%clk 0:00:02.3]} 32. Bg3+ {[%clk 0:00:13.4]} 32... Kg6 {[%clk 0:00:01.6]} 33.
Ne7+ {[%clk 0:00:13.5]} 33... Kg7 {[%clk 0:00:01.4]} 34. Nf5+ {[%clk 0:00:11.7]}
34... Kg6 {[%clk 0:00:01.9]} 35. Nh4+ {[%clk 0:00:10.7]} 35... Qxh4 {[%clk
0:00:01.3]} 36. Qxh4 {[%clk 0:00:10.3]} 36... Rxe1+ {[%clk 0:00:01.7]} 37. Bxe1
{[%clk 0:00:11.2]} 37... Rc8 {[%clk 0:00:01.1]} 38. Qg4+ {[%clk 0:00:11.4]}
38... Kh7 {[%clk 0:00:01.2]} 39. Qf5+ {[%clk 0:00:11.3]} 39... Kg7 {[%clk
0:00:01.2]} 40. h4 {[%clk 0:00:12.2]} 40... Rc1 {[%clk 0:00:01.2]} 41. Qg4+
{[%clk 0:00:12.7]} 1-0

[Event "*** Titled Tuesday Blitz"]
[Site "Chess.com"]
[Date "2020.05.05"]
[Round "9"]
[White "AleksanderHnydiuk"]
[Black "Gabrielian_Artur"]
[Result "1-0"]
[WhiteElo "2587"]
[BlackElo "2706"]
[TimeControl "180+1"]
[EndTime "11:48:08 PDT"]
[Termination "AleksanderHnydiuk won by checkmate"]

1. Nf3 {[%clk 0:03:00.9]} 1... Nf6 {[%clk 0:02:59.4]} 2. c4 {[%clk 0:03:00.7]}
2... g6 {[%clk 0:02:59.2]} 3. g3 {[%clk 0:03:00.3]} 3... Bg7 {[%clk 0:02:59.2]}
4. d4 {[%clk 0:03:00.4]} 4... O-O {[%clk 0:02:58.8]} 5. Bg2 {[%clk 0:03:00.6]}
5... d6 {[%clk 0:02:59.2]} 6. Nc3 {[%clk 0:02:59.8]} 6... Nbd7 {[%clk
0:02:59.2]} 7. O-O {[%clk 0:02:59.4]} 7... e5 {[%clk 0:02:59.2]} 8. e4 {[%clk
0:02:59.8]} 8... exd4 {[%clk 0:02:59.1]} 9. Nxd4 {[%clk 0:02:59.5]} 9... Re8
{[%clk 0:02:59.5]} 10. h3 {[%clk 0:02:58.9]} 10... Nc5 {[%clk 0:02:59.6]} 11.
Re1 {[%clk 0:02:53.8]} 11... Bd7 {[%clk 0:02:59.7]} 12. Bf4 {[%clk 0:02:45.7]}
12... h6 {[%clk 0:02:59.4]} 13. Qc2 {[%clk 0:02:34.2]} 13... Nh7 {[%clk
0:01:58.7]} 14. Rad1 {[%clk 0:02:30.5]} 14... Ng5 {[%clk 0:01:58.2]} 15. b4
{[%clk 0:01:50.4]} 15... Nce6 {[%clk 0:01:31.9]} 16. Nxe6 {[%clk 0:01:49.2]}
16... Bxe6 {[%clk 0:01:30.1]} 17. h4 {[%clk 0:01:36.9]} 17... Nh3+ {[%clk
0:01:23.2]} 18. Bxh3 {[%clk 0:01:37]} 18... Bxh3 {[%clk 0:01:23.6]} 19. c5
{[%clk 0:01:30.7]} 19... Bg4 {[%clk 0:01:20.8]} 20. Rd3 {[%clk 0:01:26.1]} 20...
g5 {[%clk 0:01:15.9]} 21. hxg5 {[%clk 0:01:24.7]} 21... hxg5 {[%clk 0:01:15.4]}
22. Bc1 {[%clk 0:01:20.2]} 22... Re6 {[%clk 0:00:53.1]} 23. Nd5 {[%clk
0:01:13.9]} 23... Rh6 {[%clk 0:00:49.7]} 24. cxd6 {[%clk 0:01:08.7]} 24... Rxd6
{[%clk 0:00:39.4]} 25. Bb2 {[%clk 0:00:31.6]} 25... f6 {[%clk 0:00:38.4]} 26.
Ree3 {[%clk 0:00:23.9]} 26... c6 {[%clk 0:00:15.7]} 27. Nxf6+ {[%clk 0:00:18.5]}
27... Bxf6 {[%clk 0:00:15.5]} 28. Rxd6 {[%clk 0:00:18.5]} 28... Qxd6 {[%clk
0:00:14.9]} 29. e5 {[%clk 0:00:18.7]} 29... Bxe5 {[%clk 0:00:13.7]} 30. Rxe5
{[%clk 0:00:17.4]} 30... Qd1+ {[%clk 0:00:11.3]} 31. Qxd1 {[%clk 0:00:16.9]}
31... Bxd1 {[%clk 0:00:12.2]} 32. Rxg5+ {[%clk 0:00:16.8]} 32... Kf7 {[%clk
0:00:12.5]} 33. Rg7+ {[%clk 0:00:16.7]} 33... Ke6 {[%clk 0:00:12.9]} 34. Rxb7
{[%clk 0:00:17.6]} 34... Bf3 {[%clk 0:00:12.6]} 35. Rh7 {[%clk 0:00:13.4]} 35...
Rd8 {[%clk 0:00:10]} 36. Rh6+ {[%clk 0:00:11.6]} 36... Kf5 {[%clk 0:00:09.4]}
37. Rf6+ {[%clk 0:00:10]} 37... Kg4 {[%clk 0:00:09.2]} 38. Rf4+ {[%clk
0:00:10.1]} 38... Kh3 {[%clk 0:00:09.7]} 39. Rh4# {[%clk 0:00:10.4]} 1-0

[Event "*** Titled Tuesday Blitz"]
[Site "Chess.com"]
[Date "2020.05.05"]
[Round "9"]
[White "zubridis"]
[Black "doons21"]
[Result "1-0"]
[WhiteElo "2475"]
[BlackElo "2582"]
[TimeControl "180+1"]
[EndTime "11:48:08 PDT"]
[Termination "zubridis won by checkmate"]

1. Nf3 {[%clk 0:03:00.9]} 1... Nf6 {[%clk 0:03:00.2]} 2. c4 {[%clk 0:03:00.8]}
2... g6 {[%clk 0:03:00.6]} 3. g3 {[%clk 0:03:00.8]} 3... Bg7 {[%clk 0:03:01.1]}
4. Bg2 {[%clk 0:03:01.4]} 4... O-O {[%clk 0:03:01.8]} 5. O-O {[%clk 0:03:01.8]}
5... d6 {[%clk 0:03:02.3]} 6. d4 {[%clk 0:03:01.4]} 6... c6 {[%clk 0:03:02.4]}
7. Nc3 {[%clk 0:03:01.4]} 7... Bf5 {[%clk 0:03:02.8]} 8. Ne1 {[%clk 0:02:51.8]}
8... Qc8 {[%clk 0:02:58.6]} 9. e4 {[%clk 0:02:49.2]} 9... Bh3 {[%clk 0:02:58.6]}
10. f3 {[%clk 0:02:40.6]} 10... Bxg2 {[%clk 0:02:57.9]} 11. Kxg2 {[%clk
0:02:36.9]} 11... e5 {[%clk 0:02:57.8]} 12. d5 {[%clk 0:02:24.2]} 12... c5
{[%clk 0:02:26.4]} 13. a3 {[%clk 0:02:19.6]} 13... Nh5 {[%clk 0:02:25.8]} 14.
Nd3 {[%clk 0:02:15.3]} 14... a6 {[%clk 0:02:22.4]} 15. Be3 {[%clk 0:02:00]}
15... Nd7 {[%clk 0:02:17.5]} 16. Rc1 {[%clk 0:01:58.5]} 16... Qe8 {[%clk
0:02:16.1]} 17. b4 {[%clk 0:01:57.5]} 17... b6 {[%clk 0:02:12.7]} 18. bxc5
{[%clk 0:01:57.1]} 18... Nxc5 {[%clk 0:02:02.7]} 19. Rb1 {[%clk 0:01:52]} 19...
Rb8 {[%clk 0:02:02.1]} 20. Nb4 {[%clk 0:01:16.4]} 20... f5 {[%clk 0:01:35.1]}
21. Nc6 {[%clk 0:01:16]} 21... Rb7 {[%clk 0:01:18.7]} 22. Bxc5 {[%clk
0:01:15.1]} 22... dxc5 {[%clk 0:01:19.6]} 23. a4 {[%clk 0:01:03.3]} 23... Qd7
{[%clk 0:01:01.8]} 24. a5 {[%clk 0:00:57.7]} 24... bxa5 {[%clk 0:01:01.8]} 25.
Nxa5 {[%clk 0:00:47.2]} 25... Rb4 {[%clk 0:01:01.9]} 26. Nc6 {[%clk 0:00:42]}
26... Rxc4 {[%clk 0:01:00.4]} 27. Qd3 {[%clk 0:00:40.3]} 27... Rd4 {[%clk
0:00:57]} 28. Nxd4 {[%clk 0:00:22]} 28... cxd4 {[%clk 0:00:56.4]} 29. Ne2 {[%clk
0:00:18.2]} 29... Nf6 {[%clk 0:00:50.9]} 30. h3 {[%clk 0:00:17]} 30... Bh6
{[%clk 0:00:34.6]} 31. Rb3 {[%clk 0:00:15.6]} 31... Rc8 {[%clk 0:00:26.4]} 32.
Rfb1 {[%clk 0:00:14.7]} 32... fxe4 {[%clk 0:00:25]} 33. fxe4 {[%clk 0:00:14.6]}
33... Qd8 {[%clk 0:00:17.6]} 34. Qxa6 {[%clk 0:00:13.8]} 34... Ne8 {[%clk
0:00:16.9]} 35. Qe6+ {[%clk 0:00:13]} 35... Kh8 {[%clk 0:00:16.1]} 36. Rb7
{[%clk 0:00:12.2]} 36... Rc2 {[%clk 0:00:13.5]} 37. Rb8 {[%clk 0:00:11.4]} 37...
Rxe2+ {[%clk 0:00:07.9]} 38. Kf1 {[%clk 0:00:11.1]} 38... Qg5 {[%clk 0:00:03]}
39. Qxe8+ {[%clk 0:00:09.6]} 39... Kg7 {[%clk 0:00:03.2]} 40. Qf8# {[%clk
0:00:10.1]} 1-0

[Event "*** Titled Tuesday Blitz"]
[Site "Chess.com"]
[Date "2020.05.05"]
[Round "9"]
[White "DonBroca"]
[Black "PotapovaM"]
[Result "0-1"]
[WhiteElo "2134"]
[BlackElo "2386"]
[TimeControl "180+1"]
[EndTime "11:48:08 PDT"]
[Termination "PotapovaM won by checkmate"]

1. e4 {[%clk 0:03:00.9]} 1... c5 {[%clk 0:02:59.7]} 2. d4 {[%clk 0:02:59.6]}
2... cxd4 {[%clk 0:02:59.9]} 3. c3 {[%clk 0:03:00]} 3... dxc3 {[%clk 0:03:00.8]}
4. Nxc3 {[%clk 0:03:00.4]} 4... d6 {[%clk 0:03:00.9]} 5. Bc4 {[%clk 0:03:00.8]}
5... Nc6 {[%clk 0:03:00.2]} 6. Nf3 {[%clk 0:03:01.2]} 6... a6 {[%clk 0:03:00.5]}
7. Qe2 {[%clk 0:03:00.7]} 7... Nf6 {[%clk 0:03:00.5]} 8. O-O {[%clk 0:02:58.8]}
8... Bg4 {[%clk 0:03:00.9]} 9. Qe3 {[%clk 0:02:36.6]} 9... e6 {[%clk 0:02:54.8]}
10. Rd1 {[%clk 0:02:29.3]} 10... Be7 {[%clk 0:02:50.4]} 11. Be2 {[%clk
0:02:22.3]} 11... Bxf3 {[%clk 0:02:46.2]} 12. Bxf3 {[%clk 0:02:21.9]} 12... O-O
{[%clk 0:02:46.7]} 13. g3 {[%clk 0:02:18.2]} 13... Ne5 {[%clk 0:02:39.2]} 14.
Bg2 {[%clk 0:02:17.4]} 14... b5 {[%clk 0:02:37]} 15. f4 {[%clk 0:02:12.8]} 15...
Nc4 {[%clk 0:02:36.7]} 16. Qe2 {[%clk 0:02:12.3]} 16... Qb6+ {[%clk 0:02:33]}
17. Kh1 {[%clk 0:02:11.9]} 17... Rac8 {[%clk 0:02:25.1]} 18. b3 {[%clk
0:02:05.4]} 18... Na5 {[%clk 0:02:17.4]} 19. Be3 {[%clk 0:02:05.7]} 19... Qb8
{[%clk 0:02:16.5]} 20. Rac1 {[%clk 0:02:02.2]} 20... Nc6 {[%clk 0:02:08.5]} 21.
Bf2 {[%clk 0:01:40.4]} 21... h6 {[%clk 0:01:37.1]} 22. h3 {[%clk 0:01:31.9]}
22... Rfd8 {[%clk 0:01:36.6]} 23. Qe3 {[%clk 0:01:28.1]} 23... Rd7 {[%clk
0:01:24.7]} 24. e5 {[%clk 0:00:58.9]} 24... dxe5 {[%clk 0:01:18.4]} 25. fxe5
{[%clk 0:00:58.8]} 25... Nxe5 {[%clk 0:01:09.8]} 26. Ne4 {[%clk 0:00:50.1]}
26... Nd5 {[%clk 0:01:07.8]} 27. Qe2 {[%clk 0:00:48.5]} 27... Rdc7 {[%clk
0:01:06.6]} 28. Rxc7 {[%clk 0:00:47.4]} 28... Qxc7 {[%clk 0:01:07.5]} 29. Qh5
{[%clk 0:00:36.6]} 29... Ng6 {[%clk 0:01:04]} 30. Bd4 {[%clk 0:00:33.7]} 30...
Qc2 {[%clk 0:01:02.4]} 31. Rf1 {[%clk 0:00:21.4]} 31... Qxa2 {[%clk 0:00:56.7]}
32. b4 {[%clk 0:00:14]} 32... Rc2 {[%clk 0:00:56.1]} 33. Rg1 {[%clk 0:00:12.7]}
33... Rxg2 {[%clk 0:00:49.9]} 34. Rxg2 {[%clk 0:00:11.6]} 34... Qb1+ {[%clk
0:00:40.6]} 35. Kh2 {[%clk 0:00:09.7]} 35... Qxe4 {[%clk 0:00:41.1]} 36. Bf2
{[%clk 0:00:09.9]} 36... Qxg2+ {[%clk 0:00:38.9]} 37. Kxg2 {[%clk 0:00:07.8]}
37... Ndf4+ {[%clk 0:00:39.8]} 38. gxf4 {[%clk 0:00:08]} 38... Nxf4+ {[%clk
0:00:40.7]} 39. Kf3 {[%clk 0:00:08.4]} 39... Nxh5 {[%clk 0:00:41.2]} 40. Bc5
{[%clk 0:00:08.1]} 40... Bxc5 {[%clk 0:00:34.5]} 41. bxc5 {[%clk 0:00:09]} 41...
Kf8 {[%clk 0:00:34.4]} 42. Ke4 {[%clk 0:00:02.1]} 42... Ke7 {[%clk 0:00:34.5]}
43. Ke5 {[%clk 0:00:03]} 43... f6+ {[%clk 0:00:34]} 44. Kd4 {[%clk 0:00:03.1]}
44... Kd7 {[%clk 0:00:34.6]} 45. Kc3 {[%clk 0:00:04]} 45... Kc6 {[%clk
0:00:34.9]} 46. Kb4 {[%clk 0:00:04.9]} 46... e5 {[%clk 0:00:33.6]} 47. Ka5
{[%clk 0:00:05.8]} 47... e4 {[%clk 0:00:33.7]} 48. Kxa6 {[%clk 0:00:06.7]} 48...
e3 {[%clk 0:00:33.7]} 49. Ka5 {[%clk 0:00:06.8]} 49... e2 {[%clk 0:00:33.7]} 50.
Ka6 {[%clk 0:00:07.7]} 50... e1=Q {[%clk 0:00:33.7]} 51. Ka7 {[%clk 0:00:08.3]}
51... Qa5+ {[%clk 0:00:32.4]} 52. Kb8 {[%clk 0:00:09.2]} 52... Qc7+ {[%clk
0:00:33]} 53. Ka8 {[%clk 0:00:09.3]} 53... Qb7# {[%clk 0:00:33.9]} 0-1